[Event "*** SCC Grand Prix: Titled Tuesday Blitz"]
[Site "Chess.com"]
[Date "2020.06.02"]
[Round "4"]
[White "comsac"]
[Black "dpopadic"]
[Result "0-1"]
[WhiteElo "2147"]
[BlackElo "2326"]
[TimeControl "180+1"]
[EndTime "10:40:32 PDT"]
[Termination "dpopadic won by resignation"]

1. e4 {[%clk 0:03:00.9]} 1... c5 {[%clk 0:02:59.2]} 2. c3 {[%clk 0:03:00.9]}
2... d6 {[%clk 0:02:57.9]} 3. d4 {[%clk 0:03:00.7]} 3... Nd7 {[%clk 0:02:58.1]}
4. Nf3 {[%clk 0:03:00.3]} 4... g6 {[%clk 0:02:58.1]} 5. Be2 {[%clk 0:02:59.7]}
5... Bg7 {[%clk 0:02:58.3]} 6. O-O {[%clk 0:02:59.6]} 6... Ngf6 {[%clk
0:02:57.7]} 7. Nbd2 {[%clk 0:02:57.9]} 7... O-O {[%clk 0:02:57.1]} 8. Re1 {[%clk
0:02:57.8]} 8... b6 {[%clk 0:02:53.4]} 9. Bc4 {[%clk 0:02:34.3]} 9... e6 {[%clk
0:02:51]} 10. e5 {[%clk 0:02:33.1]} 10... Ne8 {[%clk 0:02:45.2]} 11. exd6 {[%clk
0:02:24.8]} 11... Nxd6 {[%clk 0:02:44.2]} 12. dxc5 {[%clk 0:02:19.9]} 12... Nxc5
{[%clk 0:02:42.9]} 13. Bf1 {[%clk 0:02:15.9]} 13... Bb7 {[%clk 0:02:41.3]} 14.
Nb3 {[%clk 0:02:09.1]} 14... Nxb3 {[%clk 0:02:40]} 15. axb3 {[%clk 0:02:06.9]}
15... Nf5 {[%clk 0:02:37.7]} 16. Qe2 {[%clk 0:01:55.9]} 16... Qc7 {[%clk
0:02:29.5]} 17. Be3 {[%clk 0:01:49.8]} 17... Nxe3 {[%clk 0:02:25.2]} 18. Qxe3
{[%clk 0:01:49.9]} 18... Rfd8 {[%clk 0:02:16.6]} 19. Red1 {[%clk 0:01:36.2]}
19... Rxd1 {[%clk 0:02:16.1]} 20. Rxd1 {[%clk 0:01:37.1]} 20... Rd8 {[%clk
0:02:15.5]} 21. Rxd8+ {[%clk 0:01:35]} 21... Qxd8 {[%clk 0:02:15.2]} 22. Qd2
{[%clk 0:01:35.3]} 22... Qxd2 {[%clk 0:02:09.1]} 23. Nxd2 {[%clk 0:01:36.2]}
23... Kf8 {[%clk 0:02:08.2]} 24. f4 {[%clk 0:01:22.3]} 24... Ke8 {[%clk
0:02:02.4]} 25. Kf2 {[%clk 0:01:21.8]} 25... Bf8 {[%clk 0:02:01.5]} 26. b4
{[%clk 0:01:17.6]} 26... Bd6 {[%clk 0:02:01]} 27. g3 {[%clk 0:01:16.7]} 27...
Bc7 {[%clk 0:02:00.7]} 28. Nf3 {[%clk 0:01:12.9]} 28... f6 {[%clk 0:01:59.1]}
29. Nd4 {[%clk 0:01:11.1]} 29... Ke7 {[%clk 0:01:56.8]} 30. Bc4 {[%clk
0:01:09.2]} 30... e5 {[%clk 0:01:55.5]} 31. fxe5 {[%clk 0:00:56.6]} 31... fxe5
{[%clk 0:01:55.1]} 32. Nf3 {[%clk 0:00:48]} 32... Kf6 {[%clk 0:01:42.3]} 33. Bg8
{[%clk 0:00:42]} 33... h6 {[%clk 0:01:39.6]} 34. Ke3 {[%clk 0:00:39.3]} 34... g5
{[%clk 0:01:34.7]} 35. Nd2 {[%clk 0:00:38]} 35... Ke7 {[%clk 0:01:12]} 36. Ne4
{[%clk 0:00:36.4]} 36... Bc6 {[%clk 0:01:07]} 37. Bc4 {[%clk 0:00:33.9]} 37...
Be8 {[%clk 0:01:04.2]} 38. h4 {[%clk 0:00:33.1]} 38... gxh4 {[%clk 0:01:03.1]}
39. gxh4 {[%clk 0:00:34]} 39... Bg6 {[%clk 0:01:00]} 40. Ng3 {[%clk 0:00:33.4]}
40... Bd8 {[%clk 0:00:53.1]} 41. h5 {[%clk 0:00:31.7]} 41... Be8 {[%clk
0:00:47.4]} 42. Be2 {[%clk 0:00:29.5]} 42... Kf6 {[%clk 0:00:44.5]} 43. Ne4+
{[%clk 0:00:28.2]} 43... Ke7 {[%clk 0:00:44.6]} 44. Ng3 {[%clk 0:00:27.2]} 44...
Ke6 {[%clk 0:00:42.6]} 45. Bg4+ {[%clk 0:00:26.8]} 45... Kf6 {[%clk 0:00:42.6]}
46. Ne4+ {[%clk 0:00:27]} 46... Ke7 {[%clk 0:00:40.7]} 47. c4 {[%clk 0:00:25.1]}
47... Bc7 {[%clk 0:00:39.7]} 48. c5 {[%clk 0:00:24.5]} 48... Bf7 {[%clk
0:00:38.8]} 49. Nc3 {[%clk 0:00:19.8]} 49... a5 {[%clk 0:00:20.4]} 50. bxa5
{[%clk 0:00:16.4]} 50... bxa5 {[%clk 0:00:19.5]} 51. Nb5 {[%clk 0:00:16.4]}
51... Bd8 {[%clk 0:00:19.1]} 52. Ke4 {[%clk 0:00:16.4]} 52... Kf6 {[%clk
0:00:16.6]} 53. Nd6 {[%clk 0:00:15.3]} 53... Ba2 {[%clk 0:00:13.5]} 54. Be2
{[%clk 0:00:11]} 54... Ke6 {[%clk 0:00:10.3]} 55. Nb7 {[%clk 0:00:09.6]} 55...
Bd5+ {[%clk 0:00:09.6]} 56. Ke3 {[%clk 0:00:09.9]} 56... Bxb7 {[%clk 0:00:10.1]}
57. Bc4+ {[%clk 0:00:09.6]} 57... Kf6 {[%clk 0:00:09.2]} 58. Be2 {[%clk
0:00:09.7]} 58... Be7 {[%clk 0:00:09.3]} 59. b3 {[%clk 0:00:09.8]} 59... Bxc5+
{[%clk 0:00:09.4]} 60. Kd3 {[%clk 0:00:10.7]} 60... Ba6+ {[%clk 0:00:09]} 0-1

[Event "*** SCC Grand Prix: Titled Tuesday Blitz"]
[Site "Chess.com"]
[Date "2020.06.02"]
[Round "4"]
[White "seorobert1971"]
[Black "ural58"]
[Result "1-0"]
[WhiteElo "2645"]
[BlackElo "2452"]
[TimeControl "180+1"]
[EndTime "10:40:33 PDT"]
[Termination "seorobert1971 won by resignation"]

1. d4 {[%clk 0:03:00.9]} 1... d5 {[%clk 0:02:59.3]} 2. c4 {[%clk 0:03:00.9]}
2... e5 {[%clk 0:02:59.2]} 3. dxe5 {[%clk 0:03:00.4]} 3... d4 {[%clk 0:02:59]}
4. Nf3 {[%clk 0:03:00.7]} 4... Nc6 {[%clk 0:02:59]} 5. g3 {[%clk 0:02:58.7]}
5... Nge7 {[%clk 0:02:57.9]} 6. Bg5 {[%clk 0:02:55.3]} 6... h6 {[%clk
0:02:55.3]} 7. Bc1 {[%clk 0:02:50.7]} 7... Ng6 {[%clk 0:02:54]} 8. Bg2 {[%clk
0:02:49.4]} 8... Ngxe5 {[%clk 0:02:52.1]} 9. Nxe5 {[%clk 0:02:49.5]} 9... Nxe5
{[%clk 0:02:51.4]} 10. O-O {[%clk 0:02:49.7]} 10... Be7 {[%clk 0:02:51.6]} 11.
b3 {[%clk 0:02:49.7]} 11... O-O {[%clk 0:02:50.8]} 12. Bb2 {[%clk 0:02:49.6]}
12... c5 {[%clk 0:02:50.8]} 13. Nd2 {[%clk 0:02:45.2]} 13... Qc7 {[%clk
0:02:45.9]} 14. Qc2 {[%clk 0:02:35.4]} 14... Nc6 {[%clk 0:02:42.6]} 15. a3
{[%clk 0:02:34.4]} 15... Bg4 {[%clk 0:02:41.3]} 16. Rfe1 {[%clk 0:02:33.1]}
16... Rfe8 {[%clk 0:02:40.4]} 17. Nf3 {[%clk 0:02:28.7]} 17... Rad8 {[%clk
0:02:36.9]} 18. Rad1 {[%clk 0:02:28.1]} 18... Bh5 {[%clk 0:02:33.9]} 19. Bc1
{[%clk 0:02:19.5]} 19... Bg6 {[%clk 0:02:33.3]} 20. Qa2 {[%clk 0:02:19.4]} 20...
Bf6 {[%clk 0:02:29.3]} 21. e3 {[%clk 0:02:15.5]} 21... Qb6 {[%clk 0:02:18.5]}
22. exd4 {[%clk 0:02:14.3]} 22... Nxd4 {[%clk 0:02:17.6]} 23. Nxd4 {[%clk
0:02:02.8]} 23... Bxd4 {[%clk 0:02:18.5]} 24. Bd5 {[%clk 0:01:41.8]} 24... Kh7
{[%clk 0:02:09]} 25. Kg2 {[%clk 0:01:22.2]} 25... a5 {[%clk 0:01:15.2]} 26. a4
{[%clk 0:01:17.6]} 26... Bc3 {[%clk 0:01:07.6]} 27. Rxe8 {[%clk 0:01:16.2]}
27... Rxe8 {[%clk 0:01:07.5]} 28. Be3 {[%clk 0:01:15.5]} 28... Bb4 {[%clk
0:01:01]} 29. h4 {[%clk 0:01:09.1]} 29... Re7 {[%clk 0:00:55.5]} 30. Qe2 {[%clk
0:01:04.7]} 30... h5 {[%clk 0:00:45.1]} 31. Bf3 {[%clk 0:00:59.1]} 31... Re5
{[%clk 0:00:40.5]} 32. Rd5 {[%clk 0:00:54.1]} 32... Rxd5 {[%clk 0:00:37.4]} 33.
cxd5 {[%clk 0:00:49.3]} 33... Qd6 {[%clk 0:00:37.1]} 34. Bf4 {[%clk 0:00:45.3]}
34... Qd7 {[%clk 0:00:34.9]} 35. d6 {[%clk 0:00:42.6]} 35... c4 {[%clk
0:00:24.2]} 36. Qxc4 {[%clk 0:00:41.5]} 36... Bf5 {[%clk 0:00:20.3]} 37. Bxh5
{[%clk 0:00:29.7]} 37... Bxd6 {[%clk 0:00:18.3]} 38. Bxd6 {[%clk 0:00:28.5]}
38... Qxd6 {[%clk 0:00:18.1]} 39. Bxf7 {[%clk 0:00:26.9]} 39... Qe5 {[%clk
0:00:09.1]} 40. Bd5 {[%clk 0:00:24.7]} 40... Qe7 {[%clk 0:00:08.2]} 41. Bf3
{[%clk 0:00:23.9]} 41... g6 {[%clk 0:00:06.7]} 42. Qb5 {[%clk 0:00:21.1]} 42...
Bc8 {[%clk 0:00:06.6]} 43. Qxa5 {[%clk 0:00:20.2]} 43... Qd7 {[%clk 0:00:06.2]}
44. Qb5 {[%clk 0:00:17.7]} 44... Qh3+ {[%clk 0:00:06]} 45. Kg1 {[%clk
0:00:18.1]} 45... Qf5 {[%clk 0:00:04.5]} 46. Qxf5 {[%clk 0:00:17.8]} 46... gxf5
{[%clk 0:00:04.8]} 47. Bd5 {[%clk 0:00:17.4]} 47... Kh6 {[%clk 0:00:05.7]} 48.
f4 {[%clk 0:00:17.6]} 48... Kh5 {[%clk 0:00:05.3]} 49. Kf2 {[%clk 0:00:17.9]}
49... Kg4 {[%clk 0:00:05.4]} 50. Bf3+ {[%clk 0:00:18]} 50... Kh3 {[%clk
0:00:05.5]} 51. h5 {[%clk 0:00:18.3]} 51... Be6 {[%clk 0:00:06.1]} 52. h6 {[%clk
0:00:18.5]} 52... Bg8 {[%clk 0:00:06.3]} 53. Bxb7 {[%clk 0:00:18]} 53... Kg4
{[%clk 0:00:06.5]} 54. Bf3+ {[%clk 0:00:17.1]} 54... Kh3 {[%clk 0:00:06.5]} 55.
a5 {[%clk 0:00:17.4]} 1-0

[Event "*** SCC Grand Prix: Titled Tuesday Blitz"]
[Site "Chess.com"]
[Date "2020.06.02"]
[Round "4"]
[White "tylityli"]
[Black "SoltaniciR"]
[Result "0-1"]
[WhiteElo "2280"]
[BlackElo "2453"]
[TimeControl "180+1"]
[EndTime "10:40:33 PDT"]
[Termination "SoltaniciR won by resignation"]

1. d4 {[%clk 0:02:59.4]} 1... Nf6 {[%clk 0:02:58.6]} 2. c4 {[%clk 0:02:58.2]}
2... Nc6 {[%clk 0:02:58.6]} 3. Nf3 {[%clk 0:02:56.6]} 3... e6 {[%clk 0:02:58.6]}
4. a3 {[%clk 0:02:56.8]} 4... d6 {[%clk 0:02:58]} 5. Nc3 {[%clk 0:02:56.6]} 5...
g6 {[%clk 0:02:58.5]} 6. e4 {[%clk 0:02:56.7]} 6... Bg7 {[%clk 0:02:59]} 7. Be2
{[%clk 0:02:56.8]} 7... O-O {[%clk 0:02:58.9]} 8. O-O {[%clk 0:02:56.9]} 8...
Re8 {[%clk 0:02:59.5]} 9. b4 {[%clk 0:02:53.8]} 9... e5 {[%clk 0:02:59.4]} 10.
d5 {[%clk 0:02:50.2]} 10... Nd4 {[%clk 0:02:59.2]} 11. Be3 {[%clk 0:02:46.5]}
11... Nxe2+ {[%clk 0:02:58.9]} 12. Qxe2 {[%clk 0:02:45.1]} 12... Nh5 {[%clk
0:02:59.4]} 13. Rac1 {[%clk 0:02:31.9]} 13... f5 {[%clk 0:02:59.2]} 14. Rfd1
{[%clk 0:02:09.9]} 14... Nf6 {[%clk 0:02:42.1]} 15. Bg5 {[%clk 0:02:03.4]} 15...
h6 {[%clk 0:02:37.2]} 16. Bxf6 {[%clk 0:02:02.9]} 16... Qxf6 {[%clk 0:02:35.5]}
17. c5 {[%clk 0:01:59.9]} 17... a6 {[%clk 0:02:30.9]} 18. a4 {[%clk 0:01:52]}
18... Bf8 {[%clk 0:01:58.4]} 19. a5 {[%clk 0:01:50.3]} 19... h5 {[%clk
0:01:28.5]} 20. c6 {[%clk 0:01:47.4]} 20... Rb8 {[%clk 0:01:09.5]} 21. b5 {[%clk
0:01:35.3]} 21... bxc6 {[%clk 0:01:05]} 22. dxc6 {[%clk 0:01:20.5]} 22... Bh6
{[%clk 0:01:03.7]} 23. Nd5 {[%clk 0:01:18.6]} 23... Qf7 {[%clk 0:01:03]} 24. Rb1
{[%clk 0:01:17.1]} 24... axb5 {[%clk 0:00:59.2]} 25. Nb4 {[%clk 0:00:56.5]}
25... fxe4 {[%clk 0:00:57.6]} 26. Qxe4 {[%clk 0:00:49.3]} 26... Bf5 {[%clk
0:00:57.2]} 27. Qd5 {[%clk 0:00:49.2]} 27... Bxb1 {[%clk 0:00:49.7]} 28. Rxb1
{[%clk 0:00:49.4]} 28... e4 {[%clk 0:00:43.1]} 29. Nd4 {[%clk 0:00:47.2]} 29...
Bd2 {[%clk 0:00:36.1]} 30. Qxf7+ {[%clk 0:00:20.3]} 30... Kxf7 {[%clk
0:00:35.5]} 31. Na6 {[%clk 0:00:20.9]} 31... Rbc8 {[%clk 0:00:26.7]} 32. Nxb5
{[%clk 0:00:20.4]} 32... Bxa5 {[%clk 0:00:24]} 33. Ra1 {[%clk 0:00:19.4]} 33...
Bb6 {[%clk 0:00:24.1]} 34. Rd1 {[%clk 0:00:18.6]} 34... e3 {[%clk 0:00:23.7]}
35. fxe3 {[%clk 0:00:17.6]} 35... Rxe3 {[%clk 0:00:24]} 36. Kf1 {[%clk
0:00:17.9]} 36... Rb3 {[%clk 0:00:20.9]} 37. Nd4 {[%clk 0:00:15.9]} 37... Bxd4
{[%clk 0:00:19.6]} 38. Rxd4 {[%clk 0:00:16.8]} 38... Rb6 {[%clk 0:00:19.6]} 39.
Nb4 {[%clk 0:00:15.9]} 39... Rcb8 {[%clk 0:00:18]} 40. Nd5 {[%clk 0:00:15.7]}
40... Rxc6 {[%clk 0:00:18.2]} 41. Rf4+ {[%clk 0:00:13.8]} 41... Kg7 {[%clk
0:00:18.3]} 42. Ne7 {[%clk 0:00:12.4]} 42... Rc5 {[%clk 0:00:16.1]} 43. Kf2
{[%clk 0:00:10.9]} 43... Rb2+ {[%clk 0:00:13]} 44. Kf3 {[%clk 0:00:08.9]} 44...
Rb3+ {[%clk 0:00:13.1]} 45. Kf2 {[%clk 0:00:08.5]} 45... Rc2+ {[%clk 0:00:13]}
46. Kg1 {[%clk 0:00:08.6]} 46... Rb1+ {[%clk 0:00:13]} 47. Rf1 {[%clk
0:00:09.5]} 47... Rxf1+ {[%clk 0:00:12.9]} 48. Kxf1 {[%clk 0:00:10.4]} 48... c5
{[%clk 0:00:10.2]} 49. Nd5 {[%clk 0:00:09.8]} 49... c4 {[%clk 0:00:09.6]} 50.
Ne3 {[%clk 0:00:09.6]} 50... Rc3 {[%clk 0:00:06.8]} 51. Ke2 {[%clk 0:00:08.9]}
51... Rxe3+ {[%clk 0:00:04.5]} 52. Kxe3 {[%clk 0:00:08.8]} 52... d5 {[%clk
0:00:05.4]} 53. Kd4 {[%clk 0:00:08.9]} 53... Kf6 {[%clk 0:00:06]} 54. g3 {[%clk
0:00:08.8]} 54... Kf5 {[%clk 0:00:06.2]} 0-1

[Event "*** SCC Grand Prix: Titled Tuesday Blitz"]
[Site "Chess.com"]
[Date "2020.06.02"]
[Round "4"]
[White "Onischuk_V"]
[Black "VladimirBelous"]
[Result "1/2-1/2"]
[WhiteElo "2923"]
[BlackElo "2737"]
[TimeControl "180+1"]
[EndTime "10:40:35 PDT"]
[Termination "Game drawn - insufficient material"]

1. e4 {[%clk 0:03:00.1]} 1... c5 {[%clk 0:02:59.6]} 2. Ne2 {[%clk 0:03:00.4]}
2... Nc6 {[%clk 0:02:59]} 3. g3 {[%clk 0:03:00.7]} 3... g6 {[%clk 0:02:57.9]} 4.
Bg2 {[%clk 0:03:00.3]} 4... Bg7 {[%clk 0:02:58]} 5. O-O {[%clk 0:03:00.1]} 5...
Nf6 {[%clk 0:02:56.2]} 6. c3 {[%clk 0:03:00.6]} 6... d5 {[%clk 0:02:49.6]} 7.
exd5 {[%clk 0:02:58.9]} 7... Nxd5 {[%clk 0:02:49.7]} 8. d4 {[%clk 0:02:53.4]}
8... cxd4 {[%clk 0:02:47.3]} 9. cxd4 {[%clk 0:02:53.4]} 9... Bg4 {[%clk
0:02:36.7]} 10. Nbc3 {[%clk 0:02:53.8]} 10... Bxe2 {[%clk 0:01:49.9]} 11. Nxe2
{[%clk 0:02:15.4]} 11... O-O {[%clk 0:01:49.3]} 12. Nc3 {[%clk 0:02:14.8]} 12...
Nb6 {[%clk 0:01:20.4]} 13. d5 {[%clk 0:02:14.2]} 13... Ne5 {[%clk 0:01:17.8]}
14. Qb3 {[%clk 0:02:10.4]} 14... Rc8 {[%clk 0:01:10.8]} 15. a4 {[%clk
0:01:55.8]} 15... Nd3 {[%clk 0:01:09.8]} 16. a5 {[%clk 0:01:50.1]} 16... Nc4
{[%clk 0:01:09.7]} 17. Qxb7 {[%clk 0:01:48.5]} 17... Nxa5 {[%clk 0:01:08.6]} 18.
Qb5 {[%clk 0:01:38.8]} 18... Nxc1 {[%clk 0:01:08.3]} 19. Rfxc1 {[%clk
0:01:36.4]} 19... Nc4 {[%clk 0:01:02.9]} 20. Rxa7 {[%clk 0:01:35.4]} 20... Qd6
{[%clk 0:00:46.9]} 21. Ne4 {[%clk 0:01:31]} 21... Qb6 {[%clk 0:00:43.1]} 22.
Qxb6 {[%clk 0:01:11.1]} 22... Nxb6 {[%clk 0:00:44]} 23. Nc3 {[%clk 0:00:55.3]}
23... Rfd8 {[%clk 0:00:38.7]} 24. Rb7 {[%clk 0:00:52.5]} 24... Nxd5 {[%clk
0:00:33.4]} 25. Bxd5 {[%clk 0:00:47.4]} 25... Rxd5 {[%clk 0:00:32.7]} 26. Nxd5
{[%clk 0:00:33]} 26... Rxc1+ {[%clk 0:00:32.2]} 27. Kg2 {[%clk 0:00:33.6]} 27...
e6 {[%clk 0:00:32.4]} 28. Rb8+ {[%clk 0:00:33.5]} 28... Bf8 {[%clk 0:00:32.3]}
29. Nf6+ {[%clk 0:00:34]} 29... Kg7 {[%clk 0:00:32.7]} 30. Ne8+ {[%clk 0:00:34]}
30... Kg8 {[%clk 0:00:25.9]} 31. b4 {[%clk 0:00:32.9]} 31... Rc2 {[%clk
0:00:25.6]} 32. b5 {[%clk 0:00:31.3]} 32... Bc5 {[%clk 0:00:25.9]} 33. Nf6+
{[%clk 0:00:31.1]} 33... Kg7 {[%clk 0:00:26.3]} 34. Ne4 {[%clk 0:00:31.2]} 34...
Bd4 {[%clk 0:00:26.6]} 35. Rb7 {[%clk 0:00:26.9]} 35... h6 {[%clk 0:00:24.2]}
36. Rd7 {[%clk 0:00:21.9]} 36... e5 {[%clk 0:00:23.9]} 37. h4 {[%clk 0:00:20.4]}
37... Rb2 {[%clk 0:00:23.7]} 38. g4 {[%clk 0:00:19.9]} 38... Rxb5 {[%clk
0:00:22.4]} 39. Nd6 {[%clk 0:00:18.9]} 39... Rd5 {[%clk 0:00:19.8]} 40. Rxf7+
{[%clk 0:00:18.7]} 40... Kg8 {[%clk 0:00:20.3]} 41. Rf6 {[%clk 0:00:19]} 41...
Kg7 {[%clk 0:00:20.2]} 42. Ne8+ {[%clk 0:00:18.4]} 42... Kh7 {[%clk 0:00:20]}
43. Re6 {[%clk 0:00:17.2]} 43... Rd8 {[%clk 0:00:18.8]} 44. Re7+ {[%clk
0:00:16]} 44... Kg8 {[%clk 0:00:19]} 45. Nf6+ {[%clk 0:00:16.4]} 45... Kf8
{[%clk 0:00:18.6]} 46. Rh7 {[%clk 0:00:16.7]} 46... Rd6 {[%clk 0:00:18.7]} 47.
Ne4 {[%clk 0:00:16.4]} 47... Ra6 {[%clk 0:00:18.3]} 48. Rxh6 {[%clk 0:00:15.3]}
48... Kg7 {[%clk 0:00:18.7]} 49. g5 {[%clk 0:00:15.1]} 49... Ra2 {[%clk
0:00:19]} 50. h5 {[%clk 0:00:15.2]} 50... gxh5 {[%clk 0:00:19]} 51. Rxh5 {[%clk
0:00:15.7]} 51... Be3 {[%clk 0:00:19.2]} 52. Kf3 {[%clk 0:00:14.6]} 52... Bf4
{[%clk 0:00:19.5]} 53. Kg4 {[%clk 0:00:14.6]} 53... Re2 {[%clk 0:00:19.2]} 54.
Kf5 {[%clk 0:00:13.9]} 54... Ra2 {[%clk 0:00:16.8]} 55. Rh3 {[%clk 0:00:13.6]}
55... Ra7 {[%clk 0:00:16.9]} 56. Rb3 {[%clk 0:00:13.5]} 56... Rf7+ {[%clk
0:00:17.5]} 57. Kg4 {[%clk 0:00:11.3]} 57... Bc1 {[%clk 0:00:17.4]} 58. Rf3
{[%clk 0:00:09]} 58... Rxf3 {[%clk 0:00:15.7]} 59. Kxf3 {[%clk 0:00:09.2]} 59...
Kg6 {[%clk 0:00:16.4]} 60. Kg4 {[%clk 0:00:09.4]} 60... Bf4 {[%clk 0:00:16.9]}
61. Nc5 {[%clk 0:00:07.4]} 61... Bxg5 {[%clk 0:00:16.5]} 62. Nd3 {[%clk
0:00:07.6]} 62... Bf6 {[%clk 0:00:14.8]} 63. f4 {[%clk 0:00:07.3]} 63... exf4
{[%clk 0:00:14.7]} 64. Nxf4+ {[%clk 0:00:07.2]} 1/2-1/2

[Event "*** SCC Grand Prix: Titled Tuesday Blitz"]
[Site "Chess.com"]
[Date "2020.06.02"]
[Round "4"]
[White "ChronicUnhappiness"]
[Black "FMOlexandrProhorov"]
[Result "1-0"]
[WhiteElo "2308"]
[BlackElo "2066"]
[TimeControl "180+1"]
[EndTime "10:40:35 PDT"]
[Termination "ChronicUnhappiness won on time"]

1. d4 {[%clk 0:03:00.9]} 1... g6 {[%clk 0:02:59.6]} 2. c4 {[%clk 0:03:01]} 2...
Bg7 {[%clk 0:02:59.8]} 3. e4 {[%clk 0:03:01.1]} 3... d6 {[%clk 0:02:59.7]} 4.
Nc3 {[%clk 0:03:01.2]} 4... e5 {[%clk 0:03:00.2]} 5. Nf3 {[%clk 0:03:00.4]} 5...
exd4 {[%clk 0:02:59.3]} 6. Nxd4 {[%clk 0:02:59.9]} 6... Nc6 {[%clk 0:02:59.6]}
7. Nxc6 {[%clk 0:02:59.5]} 7... bxc6 {[%clk 0:02:59.3]} 8. Be3 {[%clk
0:02:50.5]} 8... Ne7 {[%clk 0:02:58.2]} 9. Bd3 {[%clk 0:02:44.9]} 9... O-O
{[%clk 0:02:56.2]} 10. Qd2 {[%clk 0:02:45]} 10... f5 {[%clk 0:02:53.9]} 11. exf5
{[%clk 0:02:41.6]} 11... Bxf5 {[%clk 0:02:49.7]} 12. O-O {[%clk 0:02:34.3]}
12... Bxd3 {[%clk 0:02:39.2]} 13. Qxd3 {[%clk 0:02:33.9]} 13... Nf5 {[%clk
0:02:32.7]} 14. Bd2 {[%clk 0:02:26.1]} 14... Qh4 {[%clk 0:02:22.7]} 15. Rae1
{[%clk 0:02:12.6]} 15... Rae8 {[%clk 0:02:20.2]} 16. b3 {[%clk 0:02:08.2]} 16...
Qd4 {[%clk 0:02:11.7]} 17. Qxd4 {[%clk 0:01:58.9]} 17... Nxd4 {[%clk 0:02:04.7]}
18. Rxe8 {[%clk 0:01:54.4]} 18... Rxe8 {[%clk 0:02:04.5]} 19. Re1 {[%clk
0:01:53.4]} 19... Rxe1+ {[%clk 0:01:59.2]} 20. Bxe1 {[%clk 0:01:53]} 20... Kf7
{[%clk 0:02:00.1]} 21. Kf1 {[%clk 0:01:52.2]} 21... Ke6 {[%clk 0:01:57.1]} 22.
f3 {[%clk 0:01:47.4]} 22... d5 {[%clk 0:01:49.3]} 23. cxd5+ {[%clk 0:01:36.2]}
23... cxd5 {[%clk 0:01:48.9]} 24. Na4 {[%clk 0:01:37.1]} 24... Nc2 {[%clk
0:01:40.7]} 25. Bd2 {[%clk 0:01:29.7]} 25... Kd6 {[%clk 0:01:36.4]} 26. Ke2
{[%clk 0:01:19.7]} 26... c5 {[%clk 0:01:34.7]} 27. Kd3 {[%clk 0:01:18.7]} 27...
Na3 {[%clk 0:01:26.4]} 28. Be3 {[%clk 0:01:10.4]} 28... d4 {[%clk 0:01:21.2]}
29. Bf4+ {[%clk 0:01:05.5]} 29... Kc6 {[%clk 0:01:20.4]} 30. Nb2 {[%clk
0:00:51.4]} 30... Kd5 {[%clk 0:01:13.6]} 31. g4 {[%clk 0:00:50.4]} 31... Bf8
{[%clk 0:01:05]} 32. h4 {[%clk 0:00:49]} 32... Nb1 {[%clk 0:00:59.4]} 33. Nc4
{[%clk 0:00:44.4]} 33... Nc3 {[%clk 0:00:59.9]} 34. a4 {[%clk 0:00:43.4]} 34...
Na2 {[%clk 0:00:51.3]} 35. Bd2 {[%clk 0:00:42.2]} 35... Be7 {[%clk 0:00:46.9]}
36. h5 {[%clk 0:00:41.4]} 36... Bf6 {[%clk 0:00:35.4]} 37. hxg6 {[%clk 0:00:37]}
37... hxg6 {[%clk 0:00:35]} 38. Kc2 {[%clk 0:00:37.2]} 38... a6 {[%clk
0:00:16.7]} 39. Kd3 {[%clk 0:00:37]} 39... Bg7 {[%clk 0:00:14.5]} 40. f4 {[%clk
0:00:36.7]} 40... Bf6 {[%clk 0:00:14.1]} 41. f5 {[%clk 0:00:35.9]} 41... gxf5
{[%clk 0:00:13.6]} 42. gxf5 {[%clk 0:00:36.8]} 42... Bd8 {[%clk 0:00:10.6]} 43.
Bf4 {[%clk 0:00:36.3]} 43... Nb4+ {[%clk 0:00:09.5]} 44. Kd2 {[%clk 0:00:35.1]}
44... Ke4 {[%clk 0:00:09.7]} 45. Bd6 {[%clk 0:00:33.3]} 45... Kxf5 {[%clk
0:00:05.8]} 46. Bxc5 {[%clk 0:00:32.8]} 46... Nc6 {[%clk 0:00:06.7]} 47. Kd3
{[%clk 0:00:29.3]} 47... Bf6 {[%clk 0:00:04.2]} 48. Nd6+ {[%clk 0:00:23]} 48...
Ke6 {[%clk 0:00:04.3]} 49. Ne4 {[%clk 0:00:21.6]} 49... Bh8 {[%clk 0:00:04.4]}
50. Ng5+ {[%clk 0:00:19.3]} 50... Kd5 {[%clk 0:00:04.6]} 51. Bb6 {[%clk
0:00:19.5]} 51... Nb4+ {[%clk 0:00:03.8]} 52. Kd2 {[%clk 0:00:19.3]} 52... d3
{[%clk 0:00:04.1]} 53. Nf3 {[%clk 0:00:18]} 53... Ke4 {[%clk 0:00:03.8]} 54.
Ng5+ {[%clk 0:00:17.8]} 54... Kf4 {[%clk 0:00:03.9]} 55. Ne6+ {[%clk 0:00:17.4]}
55... Kf3 {[%clk 0:00:03.3]} 56. Nc5 {[%clk 0:00:18.3]} 56... Bd4 {[%clk
0:00:02]} 57. Nxa6 {[%clk 0:00:15]} 1-0